Cogmind - Beta 13 @@@ ROGUE MODE // 2024.04.22 @ 00:36:44 Player: obieonecnolly Result: Destroyed by G-47 Trooper with Particle Gun Performance ------------- Evolutions (0) 0 Regions Visited (4) 800 Robots Destroyed (43) 215 Value Destroyed (668) 668 Prototype IDs (2) 40 Alien Tech Used (0) 0 Bonus (0) 0 TOTAL SCORE: 1723 Bonus ------- None Cogmind --------- Core Integrity 0/250 Matter 280/300 Energy 151/160 System Corruption 4% Temperature Hot (271) Movement Walking (190) Ox1 Location -9/Mines Parts ------- > --- POWER (1) -------- Light Nuclear Core > --- PROPULSION (2) --- Carbon-fiber Leg Carbon-fiber Leg > --- UTILITY (2) ------ Large Storage Unit Medium Armor Plating > --- WEAPON (2) ------- Beamcaster Battle Cannon > --- INVENTORY (15) --- Wheel Wheel Combat Airjet Heat Sink Improved Terrain Scanner Targeting Computer Improved Targeting Computer Light Armor Plating Hardened Light Armor Plating Shock Absorption System Heavy EM Pulse Gun Heavy Assault Rifle Peak State ------------ > --- POWER ------------ Light Nuclear Core > --- PROPULSION ------- Carbon-fiber Leg Carbon-fiber Leg > --- UTILITY ---------- Improved Targeting Computer Shock Absorption System > --- WEAPON ----------- Beamcaster Grenade Launcher > --- INVENTORY -------- Wheel Wheel Combat Airjet Huge Storage Unit Improved Targeting Computer [Rating: 22] Favorites ----------- Power Light Nuclear Core Engine Light Ion Engine Power Core Light Nuclear Core Propulsion Carbon-fiber Leg Leg Carbon-fiber Leg Wheel Wheel Utility Improved Targeting Computer Device Shock Absorption System Storage Large Storage Unit Processor Improved Targeting Computer Protection Medium Armor Plating Weapon Beamcaster Energy Gun Beamcaster Ballistic Gun Light Assault Rifle Ballistic Cannon Improved Light Cannon Launcher Grenade Launcher Build | -11 -10 -10 -10 -9 ------- Run | Yrd Mat Min Exi Min Slots Evolved . | . . . . . Power . | . . . . . Propulsion . | . . . . . Utility . | . . . . . Weapon . | . . . . . Parts Attached 39 | 5 15 12 3 4 Power 8 | 1 2 3 2 . Engine 5 | 1 2 2 . . Core 3 | . . 1 2 . Reactor . | . . . . . Propulsion 12 | 2 4 6 . . Treads . | . . . . . Leg 4 | . . 4 . . Wheel 8 | 2 4 2 . . Hover . | . . . . . Flight . | . . . . . Utility 8 | . 5 1 1 1 Device 2 | . 1 1 . . Storage 2 | . 1 . 1 . Processor 1 | . 1 . . . Hackware . | . . . . . Protection 3 | . 2 . . 1 Artifact . | . . . . . Weapon 11 | 2 4 2 . 3 Energy Gun 3 | 2 . 1 . . Energy Cannon . | . . . . . Ballistic Gun 3 | . 1 . . 2 Ballistic Cannon 3 | . 2 . . 1 Launcher 2 | . 1 1 . . Special Weapon . | . . . . . Impact Weapon . | . . . . . Slashing Weapon . | . . . . . Piercing Weapon . | . . . . . Special Melee Weapon . | . . . . . Unidentified Prototypes . | . . . . . Parts Lost 5 | . . 4 . 1 Power 1 | . . 1 . . Propulsion 2 | . . 2 . . Utility 1 | . . 1 . . Weapon 1 | . . . . 1 Highest Loss Streak 4 | . . 4 . 1 To Critical Strikes . | . . . . . Average Slot Usage (%) 96 | . 94 83 99 99 Engine 4 | . 14 7 . . Core 8 | . . 3 13 14 Leg 18 | . . 12 28 28 Wheel 8 | . 27 11 . . Device 3 | . 2 3 12 . Storage 6 | . . . 1 14 Processor 8 | . 8 14 14 4 Protection 7 | . 12 3 . 8 Energy Gun 9 | . . 5 14 14 Ballistic Gun 5 | . 9 . . 6 Ballistic Cannon 6 | . 8 16 . 4 Launcher 6 | . 9 5 14 2 Naked Turns . | . . . . . Heaviest Build 40 | 7 14 16 33 40 Greatest Support 32 | 20 32 32 30 30 Greatest Overweight (x) 3 | . . 3 1 1 Average Overweight (x) . | . . . . . Largest Inventory Capacity 25 | 5 25 5 15 15 Average Capacity 9 | 5 5 5 6 15 Most Carried 12 | 4 5 5 5 12 Average Carried 6 | 1 4 4 4 8 Final Capacity 15 | 5 5 5 15 15 Final Carried 12 | 3 4 5 5 12 Class Distribution -------------------- 64% | Scavenger-Mutant 35% | Mutant Dominant Class ---------------- Mutant | -10/Materials Mutant | -10/Mines Scavenger-Mutant | -10/Exiles Scavenger-Mutant | -9/Mines Resources | -11 -10 -10 -10 -9 ----------- Run | Yrd Mat Min Exi Min Matter Collected 1415 | 250 301 591 . 273 Remotely . | . . . . . Salvage Created 968 | 50 337 164 . 417 Parts 84 | 3 42 4 . 35 Haulers Intercepted 2 | . 2 . . . Recyclers Shooed 3 | . 2 1 . . Parts Field Recycled . | . . . . . Retrieved Matter . | . . . . . Parts Self-Destructed . | . . . . . Prevented . | . . . . . Kills | -11 -10 -10 -10 -9 ------- Run | Yrd Mat Min Exi Min Combat Hostiles Destroyed 27 | 1 10 8 . 8 Melee 2 | . . 2 . . Guns 8 | 1 2 . . 5 Cannons 8 | . 2 5 . 1 AOE 9 | . 6 1 . 2 Classes Destroyed 12 | 1 8 1 . 2 Worker 5 | . 1 1 . 3 Builder 3 | . 3 . . . Tunneler 5 | . 1 . . 4 Hauler 2 | . 2 . . . Recycler 3 | . 1 1 . 1 Operator 1 | . 1 . . . Watcher 3 | . 3 . . . Swarmer 11 | . 8 . . 3 Grunt 7 | 1 2 2 . 2 Brawler 1 | . . . . 1 Sentry 2 | . . . . 2 Assembled 6 | . . 6 . . Best Kill Streak 8 | 1 5 8 . 4 Combat Bots Only 7 | 1 5 7 . 3 Max Kills in Single Turn 2 | 1 2 1 . 2 Gunslinging . | . . . . . Exploded 2 | . 2 1 . 2 Melee 1 | . . 1 . . Uniques/NPCs Destroyed . | . . . . . Combat | -11 -10 -10 -10 -9 -------- Run | Yrd Mat Min Exi Min Hostile Shots Fired 129 | 2 48 42 . 37 Missed 39 | . 18 10 . 11 Damage Taken 1170 | 24 299 479 . 368 Core 252 | . 86 97 . 69 Absorbed by Shields . | . . . . . Core Remaining (%) 100 | 100 . . . . Volleys Fired 139 | 3 55 31 . 50 Largest 2 | 2 2 2 . 2 Hottest 114 | 80 78 105 . 114 Shots Fired 228 | 6 81 63 1 77 Gun 123 | 6 47 2 . 68 Cannon 83 | . 16 59 . 8 Launcher 22 | . 18 2 1 1 Special . | . . . . . Kinetic 170 | . 63 59 . 48 Thermal 30 | . . 2 . 28 Explosive 22 | . 18 2 1 1 Electromagnetic 6 | 6 . . . . Robot Hit Streak 10 | 5 5 3 . 10 Robot Miss Streak 5 | . 5 3 . 3 Penetration Max . | . . . . . Secondary Targets 1 | . . . . 1 Max Gunslinging Chain 1 | . . . . 1 Shots Hit Robots 126 | 5 45 33 . 43 Core Hits 67 | 1 29 13 . 24 Critical Kills . | . . . . . Critical Parts Destroyed 2 | . . . . 2 Critical Strikes 3 | . . . . 3 Destroy 2 | . . . . 2 Blast 1 | . . . . 1 Melee Attacks . | . . . . . Impact . | . . . . . Slashing . | . . . . . Piercing . | . . . . . Sneak Attacks . | . . . . . Combat Hostiles . | . . . . . Follow-up Attacks . | . . . . . Damage Inflicted 2890 | 67 1322 707 . 794 Guns 941 | 67 335 . . 539 Cannons 895 | . 141 609 . 145 Explosions 1041 | . 846 85 . 110 Melee . | . . . . . Ramming 13 | . . 13 . . Kinetic 1424 | . 476 609 . 339 Thermal 345 | . . . . 345 Explosive 1041 | . 846 85 . 110 Electromagnetic 67 | 67 . . . . Impact . | . . . . . Slashing . | . . . . . Piercing . | . . . . . Highest Corruption 4 | . . 4 4 4 Average Corruption 3 | . . 3 4 4 Corruption Purged . | . . . . . Corruption Blocked . | . . . . . Effects 45 | . . 7 10 28 Message Errors 9 | . . 1 2 6 Matter Fused 17 | . . 2 6 9 Heat Flow Errors 5 | . . 1 1 3 Energy Discharges 2 | . . . . 2 Data Loss (minor) 6 | . . 2 . 4 Data Loss (major) 1 | . . . . 1 Misfires 4 | . . 1 1 2 Alerts 1 | . . . . 1 Overload Shots . | . . . . . Overflow Damage 54 | . 27 15 . 12 Projectiles 12 | . . 12 . . Explosions 39 | . 27 . . 12 Melee 3 | . . 3 . . Knockbacks 9 | . . 7 . 2 Impact . | . . . . . Kinetic 9 | . . 7 . 2 Secondary . | . . . . . Self-Inflicted Damage 65 | . 27 6 . 32 Shots 2 | . 1 . . 1 Rammed 4 | . . 4 . . Targets Rammed 4 | . . 4 . . Kicked . | . . . . . Crushed . | . . . . . Highest Temperature 376 | 48 66 96 141 376 Average Temperature 65 | 24 20 34 72 90 Received Heat Transfer 361 | 12 60 166 . 123 Effects 1 | . . . . 1 Shutdowns 1 | . . . . 1 Siege Activations . | . . . . . Robots Corrupted . | . . . . . Combat Hostiles . | . . . . . Parts Fried . | . . . . . Impact Corruptions 1 | . . 1 . . Robots Melted . | . . . . . Combat Hostiles . | . . . . . Parts Melted . | . . . . . Heat Transferred 592 | . . . . 592 Parts Sabotaged . | . . . . . Parts Stolen . | . . . . . Parts Stripped . | . . . . . Power Chain Reactions . | . . . . . Alert | -11 -10 -10 -10 -9 ------- Run | Yrd Mat Min Exi Min Peak Influence 314 | 20 314 160 . 94 Initial 122 | . 13 122 . . Average 100 | 1 176 133 . 52 Maximum Alert Level 1 | . 1 . . . Low Security (%) 85 | 100 49 100 . 100 Level 1 14 | . 50 . . . Level 2 . | . . . . . Level 3 . | . . . . . Level 4 . | . . . . . Level 5 . | . . . . . High Security . | . . . . . Max Security . | . . . . . Squads Dispatched 1 | . 1 . . . Investigation . | . . . . . Extermination . | . . . . . Reinforcement 1 | . 1 . . . Assault . | . . . . . Garrison . | . . . . . Intercept . | . . . . . Searches Triggered . | . . . . . Construction Impeded . | . . . . . Haulers Reinforced . | . . . . . Active Scanning Responses . | . . . . . Cargo Convoy Interrupts . | . . . . . Stealth | -11 -10 -10 -10 -9 --------- Run | Yrd Mat Min Exi Min Distress Signals . | . . . . . Communications Jammed . | . . . . . Distress Signals . | . . . . . Times Spotted 38 | 1 18 9 . 10 Peak Tracking Total 6 | 1 3 6 . 3 Tactical Retreats 4 | . 3 1 . . Traps | -11 -10 -10 -10 -9 ------- Run | Yrd Mat Min Exi Min Traps Triggered . | . . . . . Indirectly . | . . . . . Trap Hack Attempts . | . . . . . Triggered . | . . . . . Disarmed . | . . . . . Reprogrammed . | . . . . . Reused . | . . . . . Traps Extracted . | . . . . . Installed . | . . . . . Triggered . | . . . . . Machines | -11 -10 -10 -10 -9 ---------- Run | Yrd Mat Min Exi Min Machines Disabled 6 | . 4 . . 2 Max in Single Turn 1 | . 1 . . 1 Machines Repaired . | . . . . . Machines Dismantled . | . . . . . Machines Sabotaged . | . . . . . Overloaded Fab Kills . | . . . . . Hacking | -11 -10 -10 -10 -9 --------- Run | Yrd Mat Min Exi Min Machines Accessed 7 | . 5 . 2 . Terminals 4 | . 4 . . . Fabricators . | . . . . . Repair Stations . | . . . . . Recycling Units 1 | . 1 . . . Scanalyzers . | . . . . . Garrison Access . | . . . . . Total Hacks 34 | . 10 . 24 . Successful 32 | . 8 . 24 . Failed 2 | . 2 . . . Catastrophic . | . . . . . Database Lockouts . | . . . . . Manual 1 | . . . 1 . Terminals 9 | . 9 . . . Fabricators . | . . . . . Repair Stations . | . . . . . Recycling Units 1 | . 1 . . . Scanalyzers . | . . . . . Garrison Access . | . . . . . Terminal Hacks 31 | . 7 . 24 . Record 28 | . 4 . 24 . Robot Analysis 1 | . 1 . . . Prototype ID Bank 1 | . 1 . . . Alert Level 1 | . 1 . . . Fabricator Hacks . | . . . . . Repair Station Hacks . | . . . . . Recycling Unit Hacks 1 | . 1 . . . Report Inventory 1 | . 1 . . . Scanalyzer . | . . . . . Garrison Access Hacks . | . . . . . Unauthorized Hacks . | . . . . . Terminals . | . . . . . Fabricators . | . . . . . Repair Stations . | . . . . . Recycling Units . | . . . . . Scanalyzers . | . . . . . Garrison Access . | . . . . . Data Cores Recovered . | . . . . . Used . | . . . . . Hacking Detections 3 | . 3 . . . Full Trace Events . | . . . . . Feedback Events . | . . . . . Feedback Blocked . | . . . . . Robot Schematics Acquired . | . . . . . Robots Built . | . . . . . Authchips . | . . . . . Time . | . . . . . Total Robot Build Rating . | . . . . . Part Schematics Acquired . | . . . . . Parts Built . | . . . . . Authchips . | . . . . . Time . | . . . . . Total Part Build Rating . | . . . . . Parts Repaired . | . . . . . Time . | . . . . . Parts Recycled . | . . . . . Recycled Matter . | . . . . . Retrieved Matter . | . . . . . Retrieved Components . | . . . . . Parts Scanalyzed . | . . . . . Part Schematics Acquired . | . . . . . Parts Damaged . | . . . . . Bothacking | -11 -10 -10 -10 -9 ------------ Run | Yrd Mat Min Exi Min Used RIF Installer . | . . . . . Robots Hacked . | . . . . . Non-combat . | . . . . . Combat . | . . . . . Robot Hacks Applied . | . . . . . Relay Couplers Released . | . . . . . Fabnet Peak Effective % . | . . . . . Robots Rewired . | . . . . . Allies Hacked . | . . . . . Hacks Repelled . | . . . . . Allies | -11 -10 -10 -10 -9 -------- Run | Yrd Mat Min Exi Min Total Allies . | . . . . . Largest Group . | . . . . . Highest-Rated Group . | . . . . . Highest-Rated Ally . | . . . . . Total Orders . | . . . . . Ally Attacks . | . . . . . Total Damage . | . . . . . Kills . | . . . . . Allies Corrupted . | . . . . . Allies Melted . | . . . . . Intel | -11 -10 -10 -10 -9 ------- Run | Yrd Mat Min Exi Min Robot Analysis Total 1 | . 1 . . . Derelict Logs Recovered 2 | . . . . 2 Drone Launches . | . . . . . Drone Recoveries . | . . . . . Exploration | -11 -10 -10 -10 -9 ------------- Run | Yrd Mat Min Exi Min Turns Passed 2892 | 89 706 414 458 1225 Spaces Moved 1940 | 95 651 259 362 573 Core 45 | 23 . 22 . . Treads . | . . . . . Legs 1070 | . . 135 362 573 Wheels 825 | 72 651 102 . . Hover . | . . . . . Flight . | . . . . . Fastest Speed 50 | 50 80 80 120 120 Average Speed 125 | 72 81 111 125 189 Slowest Speed 200 | 80 100 200 190 190 Overloaded Moves . | . . . . . Propulsion Burnouts . | . . . . . Robots Hopped . | . . . . . Cave-ins Triggered . | . . . . . Exploration Rate (%) 59 | 6 71 52 70 97 Regions Visited 4 Branch Regions 3 Pre-discovered Areas 1 | . . . 1 . Known Exits Taken . | . . . . . Unknown Exits Taken 4 | 1 1 1 1 . Scrap Searched 2 | . . 1 . 1 Spaces Dug . | . . . . . Terrain Destroyed 106 | . 94 3 . 9 Melee . | . . . . . Projectile 5 | . 2 3 . . AOE 101 | . 92 . . 9 Terrain Rammed . | . . . . . Walls Destroyed . | . . . . . Machines Disabled . | . . . . . Actions | -11 -10 -10 -10 -9 --------- Run | Yrd Mat Min Exi Min Total 2183 | 107 742 321 368 645 Wait 7 | . . 3 . 4 Move 1936 | 94 650 258 361 573 Hop . | . . . . . Pick Up 23 | 5 7 1 . 10 Fast Attach 25 | 3 7 11 3 1 Attach 6 | 2 1 1 . 2 Detach 11 | . 3 5 1 2 Swap 8 | . 7 . . 1 Drop 24 | . 12 7 3 2 Fire 139 | 3 55 31 . 50 Melee . | . . . . . Ram 4 | . . 4 . . Kick . | . . . . . Crush . | . . . . . Escape Stasis . | . . . . . Rewire . | . . . . . Trap . | . . . . . Miscellaneous . | . . . . . Route ------- -11/Scrapyard -10/Materials (discovered 2 exits: [*Mat] / [*Min]) -10/Mines (discovered 2 exits: [*Mat] / *Exi) -10/Exiles (discovered 2 exits: [*Min x2]) -9/Mines (discovered 2 exits: *Mat x2) History --------- Turn | Location | Event 2 | -11/Scrapyard | Met Revision 17 76 | -11/Scrapyard | Discovered new exit (range 8) 90 | -11/Scrapyard | Entered Materials 235 | -10/Materials | Discovered new exit (range 8) 312 | -10/Materials | Build established: Mutant 402 | -10/Materials | Discovered new exit (range 10) 796 | -10/Materials | Entered Mines 805 | -10/Mines | Met a Derelict bent on vengeance 834 | -10/Mines | Discovered new exit (range 8) 847 | -10/Mines | Assembled infested the area 896 | -10/Mines | Core integrity fell below 50% 933 | -10/Mines | Lost 4 parts (1p2n1u) 957 | -10/Mines | Destroyed 7 combat bots 1202 | -10/Mines | Deemed a non-threat by the Exiles lab entrance 1203 | -10/Mines | Discovered new exit (range 5) 1210 | -10/Mines | Entered Exiles 1271 | -10/Exiles | Met 8R-AWN 1300 | -10/Exiles | Discovered new exit (range 14) 1327 | -10/Exiles | Build established: Scavenger-Mutant 1361 | -10/Exiles | Met EX-HEX 1405 | -10/Exiles | Met EX-DEC 1430 | -10/Exiles | Learned location of Zion (-7) 1453 | -10/Exiles | Met EX-BIN 1646 | -10/Exiles | Discovered new exit (range 14) 1668 | -10/Exiles | Entered Mines 1826 | -9/Mines | Identified exit to Materials 1897 | -9/Mines | Core integrity fell below 20% 2170 | -9/Mines | A weapon hastily lodged in a ceiling crevice suddenly fell to the ground 2469 | -9/Mines | Discovered exit to Materials (range 11) 2893 | -9/Mines | Destroyed by G-47 Trooper with Particle Gun Last Messages --------------- 02598_ Acquired 6 matter. 02603_ K-01 Serf collects debris. 02606_ Acquired 2 matter. 02626_ System corrupted: Heat flow error (+240). 02648_ K-01 Serf destroyed. 02654_ Acquired 5 matter. 02656_ T-07 Excavator destroyed. 02657_ Acquired 5 matter. 02686_ System corrupted: Energy discharge (-57). 02701_ KQ22RM <%WMM6 IXZ9I 02754_ K-01 Serf destroyed. 02755_ Acquired 5 matter. 02791_ CTHH9PJD%IL6OZZFSFMCS/US 02846_ AME6FFPZ%D 3Z%W&%XGRAR,CJC 2P >FP & 02881_ G-47 Trooper knocked back. 02892_ G-34 Mercenary knocked back. Map ----- +----------------------------------------------------+ | ???????????????????????????# ## # | | ???????????????????????????# ####### # | | ???????????????????????????#### ##???## | | ????######????????????????????# ##????# | | ???##" "##???????????????????# ### #????## | | ???#" ! ""#???????????????????# #?## #???## # | | ???# ! #?????????????????### #??## #?## ## | | ???## ![%##????????????????## #???## ## #? | | ???###++###???????????????## #????# ## | | ???# =%![[#???????????##### ##???# # | | ??## = #########???# ###### | | ??# #???# ### ### | | ??# #???? ??# ##### | | ??# #???# ??# ##??## | | ??# #???# ??## ###### | | ??# #???? ???## ### | | ??# #????$????#### ### # | | ??# ##### ##?????## #?## # | | ??# #??????## #### #??# # | | ??# #??????## ##??# #??# # | | ??# ###### #??????# ##???# #### # | | ??# #????# #????# #????# # | | ??# #????# #???# #????# ###### | | ??# #????# #???# #????# #????? | | ??# = < #????# ###?## #???## #????? | | ??# ! #????# @ #??### #???# ##????? | | ??# = | #????# #????## ##???# ##????? | | #####%#############????## g#?????###????# ####?? | | *| #??????????????#g%#????????????## ##? | | = ! #???? ??????#% #?????????????### ## | | ####### #????? """ ###% #???????????????## | | ??????# #????? """ #????????????????## | | ?????## ###??? """ ### #?????????????????# | | ????## ##? ??????# #?????#####??????## | | ????# ##??????????# #?????# #??????# | | ????### #??????????# #????## #??????## | | ??????## ############ ###### #??????## | | ???????# ######## | | ######## ###### #### | | ##????# #??######## # | | ######### ##?????# #????????# ##### # | | ???????# ##??????# ######???# ##??## # | | ??????# #???????# #???# ####??## | | ??????# #???????###### #???# #?????# | | ??????## ##????????????# #???# #?????# | | ???????####?????????????# ##### ####### """ | | ????????????????????????# " "[= | | ????????????????????????############ ## ## | | ???????????????????????????????????# ## = #### | | ???????????????????????????????????# *###?### | +----------------------------------------------------+ Best States ------------- Heat Dissipation 35 Energy Generation 14 Energy Capacity 160 Matter Stores 300 Matter Capacity 300 Sight Range 16 Terrain Scan Density 10 Armor Coverage 225 Resistance: EX 25 Evasion (%) 55 Targeting Accuracy 6 Item Schematics ----------------- None Robot Schematics ------------------ None Fabricated ------------ Nothing Alien Tech Used ----------------- None Achievements -------------- Fist Fight I Survived The Infestation Librarian Maybe Next Time I'll Detach My Launcher Storm Trooper Tourist Challenges ------------ None Game ------ Seed LargeLatentAirjet Manual? 0 Play Time 00:47:48 Cumulative 2.2 hours Start 2024.04.21 @ 23:50:01 End 2024.04.22 @ 00:36:44 Sessions 1 Manual Loads 0 Difficulty Rogue Special Mode None Game No. 3 Rogue 3 Adventurer 0 Explorer 0 Win Type - Total 0 Types 0/0/0/0/0/0/0/0/0 Lore% 5 Gallery% 3 Achievement% 5 Wizard Run 0 Options --------- Layout 1 ASCII 0 Keyboard 0 Movement Arrows Keybinds 0 Fullscreen 2 Font 24/Proggy Map View 50x35 Zoom Use 0% Tactical HUD 1 Map Filters NONE Filters NONE Steam 1 RUN: 39bab992-976b-4d44-a8e8-1261829de4a1